fUSD/lending_fUSD_20241215
["ID","MTS","AMOUNT","RATE_DAILY","PERIOD"]
[345440704,1734259841514,-500.0,0.00019891,3]
[345440705,1734259841523,-250.18578868,0.00019891,3]
[345440706,1734259841533,-500.0,0.00019891,3]
[345440707,1734259841542,-500.0,0.00019891,3]
[345440708,1734259841551,-500.0,0.00019891,3]
[345440709,1734259841560,-500.0,0.00019891,3]
[345440710,1734259841570,-500.0,0.00019891,3]
[345440711,1734259841580,-500.0,0.00019891,3]
[345440712,1734259841590,-695.08,0.00019891,3]
[345440713,1734259841600,-500.0,0.00019891,3]
[345440714,1734259841610,-201.79,0.00019891,3]
[345440715,1734259841620,-643.97,0.00019891,3]
[345440716,1734259841629,-500.0,0.00019891,3]
[345440717,1734259841638,-500.0,0.00019891,2]
[345440718,1734259841648,-500.0,0.00019891,3]
[345440719,1734259841657,-500.0,0.00019891,3]
[345440720,1734259841667,-500.0,0.00019891,3]
[345440721,1734259841676,-500.0,0.00019891,3]
[345440722,1734259841687,-500.0,0.00019891,3]
[345440723,1734259841696,-500.0,0.00019891,3]
[345440724,1734259841708,-502.88501585,0.00019891,3]
[345440725,1734259841721,-2.46498415,0.00019891,3]
[345440726,1734259841731,-500.0,0.00019891,3]
[345440727,1734259841741,-500.0,0.00019891,3]
[345440728,1734259841750,-500.0,0.00019891,3]
[345440729,1734259841760,-500.0,0.00019891,3]
[345440730,1734259841770,-500.0,0.00019891,3]
[345440731,1734259841780,-122.71725913,0.00019891,3]
[345440732,1734259841792,-377.28274087,0.00019891,3]
[345440733,1734259841801,-500.0,0.00019891,3]
[345440734,1734259841810,-85.42360829,0.00019891,3]
[345440735,1734259841821,-414.57639171,0.00019891,3]
[345440736,1734259841831,-26.32936127,0.00019891,3]
[345440737,1734259841854,-150.0,0.00019813,2]
[345440738,1734259841865,-473.67063873,0.00019891,3]
[345440739,1734259841874,-32.46936127,0.00019891,3]
[345440740,1734259841900,-150.0,0.00019836,2]
[345440741,1734259841909,-467.53063873,0.00019891,3]
[345440742,1734259841919,-500.0,0.00019891,3]
[345440743,1734259841928,-500.0,0.00019891,3]
[345440744,1734259841938,-150.0,0.00019893,2]
[345440745,1734259842114,-150.0,0.00019895,2]
[345440746,1734259842125,-230.5007,0.00019896,2]
[345440747,1734259842135,-150.0,0.00019896,2]
[345440748,1734259842144,-150.0,0.00019897,2]
[345440749,1734259842153,-586.37521961,0.00019898,2]
[345440750,1734259842163,-755.9388581,0.00019898,2]
[345440751,1734259842172,-519.0,0.000199,7]
[345440752,1734259842182,-150.0,0.000199,2]
[345440753,1734259842192,-407.48799788,0.000199,2]
[345440754,1734259842200,-328.95820928,0.000199,2]
[345440755,1734259842210,-150.0,0.00019902,2]
[345440756,1734259842220,-150.0,0.00019902,2]
[345440757,1734259842230,-150.0,0.00019906,2]
[345440758,1734259842240,-150.0,0.00019909,2]
[345440759,1734259842249,-150.0,0.0001991,2]
[345440760,1734259842258,-1351.84374349,0.00019911,2]
[345440761,1734259842341,-150.0,0.0001982,2]
[345440762,1734259842351,-150.0,0.00019822,2]
[345440763,1734259842363,-440.69425651,0.00019911,2]
[345440764,1734259842375,-170.718,0.00019911,2]
[345440765,1734259842385,-150.0,0.00019911,2]
[345440766,1734259842395,-150.0,0.00019917,2]
[345440767,1734259842405,-150.0,0.0001992,2]
[345440768,1734259842415,-150.0,0.00019921,2]
[345440769,1734259842424,-150.0,0.00019922,2]
[345440770,1734259842437,-143.58774399,0.0001993,2]
[345440771,1734259842449,-6.41225601,0.0001993,2]
[345440772,1734259842458,-150.0,0.00019932,2]
[345440773,1734259842468,-150.0,0.00019932,2]
[345440774,1734259842478,-150.0,0.00019938,2]
[345440775,1734259842488,-150.0,0.00019939,2]
[345440776,1734259842498,-150.0,0.00019943,2]
[345440777,1734259842507,-72.34543502,0.00019943,2]
[345440778,1734259842545,-150.0,0.0001978,2]
[345440779,1734259842556,-150.0,0.00019855,2]
[345440780,1734259842565,-150.0,0.00019926,2]
[345440781,1734259842575,-77.65456498,0.00019943,2]
[345440782,1734259842584,-150.0,0.00019946,2]
[345440783,1734259842595,-150.0,0.00019948,2]
[345440784,1734259842605,-150.0,0.00019952,2]
[345440785,1734259842615,-150.0,0.00019953,2]
[345440786,1734259842624,-150.0,0.00019955,2]
[345440787,1734259842634,-150.0,0.0001996,2]
[345440789,1734259842643,-150.0,0.00019962,2]
[345440791,1734259842652,-150.0,0.00019963,2]
[345440792,1734259842662,-150.0,0.00019966,2]
[345440793,1734259842671,-150.0,0.00019966,2]
[345440794,1734259842681,-6.86943348,0.00019966,2]
[345440795,1734259842693,-143.13056652,0.00019966,2]
[345440796,1734259842703,-150.0,0.0001997,2]
[345440797,1734259842713,-150.0,0.00019971,2]
[345440798,1734259842722,-641.22154269,0.00019973,2]
[345440799,1734259842732,-352.28210077,0.00019973,2]
[345440800,1734259842742,-500.0,0.00019973,2]
[345440801,1734259842752,-150.0,0.00019973,2]
[345440802,1734259842762,-150.0,0.00019976,2]
[345440803,1734259842770,-150.0,0.00019977,2]
[345440805,1734259842781,-150.0,0.00019978,2]
[345440807,1734259842791,-0.4053132,0.00019979,2]
[345440809,1734259842803,-149.5946868,0.00019979,2]
[345440811,1734259842811,-150.0,0.0001998,2]
[345440813,1734259842821,-371.47531311,0.0001998,4]
[345440817,1734259843206,-150.0,0.00019723,2]
[345440818,1734259843215,-150.0,0.00019738,2]
[345440819,1734259843225,-61.45361106,0.00019739,2]
[345440820,1734259843237,-88.54638894,0.00019739,2]
[345440821,1734259843247,-150.0,0.00019741,2]
[345440822,1734259843257,-98.81199882,0.00019748,2]
[345440823,1734259843269,-51.18800118,0.00019748,2]
[345440824,1734259843279,-150.0,0.0001975,2]
[345440825,1734259843289,-150.0,0.00019756,2]
[345440826,1734259843299,-150.0,0.00019756,2]
[345440827,1734259843308,-150.0,0.00019758,2]
[345440828,1734259843319,-150.0,0.00019759,2]
[345440829,1734259843329,-150.0,0.0001976,2]
[345440830,1734259843339,-150.0,0.00019764,2]
[345440831,1734259843350,-150.0,0.0001977,2]
[345440832,1734259843359,-150.0,0.00019771,2]
[345440833,1734259843370,-150.0,0.00019775,2]
[345440834,1734259843380,-150.0,0.00019786,2]
[345440835,1734259843390,-150.0,0.00019787,2]
[345440836,1734259843399,-150.0,0.00019789,2]
[345440837,1734259843408,-150.0,0.00019792,2]
[345440838,1734259843419,-150.0,0.00019802,2]
[345440839,1734259843429,-150.0,0.00019808,2]
[345440840,1734259843442,-150.0,0.00019815,2]
[345440841,1734259843452,-150.0,0.00019817,2]
[345440842,1734259843461,-150.0,0.00019818,2]
[345440843,1734259843471,-150.0,0.00019819,2]
[345440844,1734259843483,-150.0,0.0001982,2]
[345440845,1734259843493,-150.0,0.00019824,2]
[345440846,1734259843502,-150.0,0.00019831,2]
[345440847,1734259843515,-150.0,0.00019832,2]
[345440848,1734259843525,-150.0,0.00019834,2]
[345440849,1734259843535,-150.0,0.00019841,2]
[345440850,1734259843544,-150.0,0.00019846,2]
[345440851,1734259843554,-150.0,0.00019846,2]
[345440852,1734259843563,-150.0,0.00019861,2]
[345440853,1734259843573,-150.0,0.00019879,2]
[345440854,1734259843582,-150.0,0.00019885,2]
[345440855,1734259843592,-150.0,0.00019886,2]
[345440856,1734259843602,-150.0,0.00019888,2]
[345440857,1734259843612,-150.0,0.00019888,2]
[345440858,1734259843622,-150.0,0.00019891,2]
[345440859,1734259843631,-150.0,0.00019895,2]
[345440860,1734259843641,-150.0,0.00019901,2]
[345440861,1734259843651,-150.0,0.00019911,2]
[345440862,1734259843661,-150.0,0.00019914,2]
[345440863,1734259843670,-150.0,0.00019915,2]
[345440864,1734259843680,-150.0,0.00019921,2]
[345440865,1734259843689,-150.0,0.00019929,2]
[345440866,1734259843699,-150.0,0.0001993,2]
[345440867,1734259843709,-150.0,0.00019935,2]
[345440868,1734259843719,-150.0,0.00019944,2]
[345440869,1734259843729,-150.0,0.00019945,2]
[345440870,1734259843738,-150.0,0.00019952,2]
[345440871,1734259843747,-150.0,0.00019959,2]
[345440872,1734259843757,-150.0,0.00019963,2]
[345440873,1734259843766,-150.0,0.00019966,2]
[345440874,1734259843775,-150.0,0.00019968,2]
[345440875,1734259843784,-150.0,0.00019969,2]
[345440876,1734259843794,-5293.01199898,0.0001998,4]
[345440877,1734259843806,-833.87987711,0.0001998,4]
[345440878,1734259843931,-150.0,0.00019773,2]
[345440879,1734259843943,-150.0,0.0001979,2]
[345440880,1734259843957,-150.0,0.00019867,2]
[345440881,1734259843970,-150.0,0.00019875,2]
[345440882,1734259843981,-150.0,0.00019954,2]
[345440883,1734259843992,-448.46232786,0.0001998,4]
[345440884,1734259844007,-1164.90682513,0.0001998,4]
[345440885,1734259844022,-3868.39883779,0.0001998,4]
[345440886,1734259844047,-88074.75896073,0.0001998,4]
[345440887,1734259844059,-150.0,0.00019981,2]
[345440888,1734259844072,-150.0,0.00019981,2]
[345440889,1734259844084,-150.0,0.00019982,2]
[345440890,1734259844097,-150.0,0.00019982,2]
[345440891,1734259844109,-150.0,0.00019982,2]
[345440892,1734259844126,-150.0,0.00019982,2]
[345440893,1734259844139,-784.41077435,0.00019983,2]
[345440894,1734259844163,-150.0,0.00019983,2]
[345440895,1734259844181,-500.0,0.00019988,3]
[345440896,1734259844194,-500.0,0.00019988,3]
[345440897,1734259844207,-160.94898204,0.00019988,3]
[345440898,1734259844220,-319.66592705,0.00019988,3]
[345440899,1734259844232,-500.0,0.00019988,3]
[345440900,1734259844244,-500.0,0.00019988,3]
[345440901,1734259844256,-500.0,0.00019988,3]
[345440902,1734259844269,-391.35,0.00019988,3]
[345440903,1734259844281,-500.0,0.00019988,3]
[345440904,1734259844293,-500.0,0.00019988,3]
[345440905,1734259844306,-500.0,0.00019988,3]
[345440906,1734259844317,-500.0,0.00019988,3]
[345440907,1734259844330,-500.0,0.00019988,3]
[345440908,1734259844343,-552.83,0.00019988,3]
[345440909,1734259844355,-500.0,0.00019988,3]
[345440910,1734259844369,-500.0,0.00019988,3]
[345440911,1734259844382,-500.0,0.00019988,3]
[345440912,1734259844394,-500.0,0.00019988,3]
[345440913,1734259844406,-500.0,0.00019988,3]
[345440914,1734259844416,-500.0,0.00019988,3]
[345440915,1734259844429,-500.0,0.00019988,3]
[345440916,1734259844443,-209.81166527,0.00019988,3]
[345440917,1734259844455,-500.0,0.00019988,3]
[345440918,1734259844467,-500.0,0.00019988,3]
[345440919,1734259844480,-500.0,0.00019988,3]
[345440920,1734259844491,-500.0,0.00019988,3]
[345440921,1734259844502,-500.0,0.00019988,3]
[345440922,1734259844515,-500.0,0.00019988,3]
[345440923,1734259844526,-426.57127236,0.00019988,3]
[345440924,1734259844538,-500.0,0.00019988,3]
[345440925,1734259844549,-500.0,0.00019988,3]
[345440926,1734259844562,-500.0,0.00019988,3]
[345440927,1734259844575,-500.0,0.00019988,3]
[345440928,1734259844586,-695.08,0.00019988,3]
[345440929,1734259844598,-500.0,0.00019988,3]
[345440930,1734259844608,-500.0,0.00019988,3]
[345440931,1734259844620,-500.0,0.00019988,2]
[345440932,1734259844631,-500.0,0.00019988,3]
[345440933,1734259844642,-500.0,0.00019988,3]
[345440934,1734259844654,-500.0,0.00019988,3]
[345440935,1734259844665,-500.0,0.00019988,3]
[345440936,1734259844675,-500.0,0.00019988,3]
[345440937,1734259844685,-500.0,0.00019988,3]
[345440938,1734259844695,-505.35,0.00019988,3]
[345440939,1734259844705,-500.0,0.00019988,3]
[345440940,1734259844718,-500.0,0.00019988,3]
[345440941,1734259844730,-500.0,0.00019988,3]
[345440942,1734259844741,-500.0,0.00019988,3]
[345440943,1734259844753,-500.0,0.00019988,3]
[345440944,1734259844768,-500.0,0.00019988,3]
[345440945,1734259844779,-500.0,0.00019988,3]
[345440946,1734259844791,-500.0,0.00019988,3]
[345440947,1734259844802,-251.19923553,0.00019988,3]
[345440948,1734259844812,-500.0,0.00019988,3]
[345440949,1734259844823,-500.0,0.00019988,3]
[345440950,1734259844833,-784.41077435,0.00019989,2]
[345440951,1734259844843,-784.41077435,0.0001999,2]
[345440952,1734259844854,-150.0,0.00019992,2]
[345440953,1734259844864,-500.0,0.00019992,3]
[345440954,1734259844875,-500.0,0.00019992,3]
[345440955,1734259844885,-500.0,0.00019992,3]
[345440956,1734259844897,-500.0,0.00019992,3]
[345440957,1734259844907,-484.67512735,0.00019992,3]
[345440958,1734259844918,-500.0,0.00019992,3]
[345440959,1734259844928,-1000.0,0.00019992,2]
[345440960,1734259844939,-1000.0,0.00019992,4]
[345440961,1734259844949,-1000.0,0.00019992,6]
[345440962,1734259844961,-500.0,0.00019992,3]
[345440963,1734259844972,-500.0,0.00019992,3]
[345440964,1734259844983,-500.0,0.00019992,3]
[345440965,1734259844995,-500.0,0.00019992,3]
[345440966,1734259845005,-500.0,0.00019992,3]
[345440967,1734259845016,-500.0,0.00019992,3]
[345440968,1734259845027,-500.0,0.00019992,3]
[345440969,1734259845038,-500.0,0.00019992,3]
[345440970,1734259845048,-500.0,0.00019992,3]
[345440971,1734259845059,-500.0,0.00019992,3]
[345440972,1734259845070,-500.0,0.00019992,3]
[345440973,1734259845080,-784.25,0.00019992,3]
[345440974,1734259845091,-568.96,0.00019992,3]
[345440975,1734259845102,-500.0,0.00019992,3]
[345440976,1734259845114,-500.0,0.00019992,3]
[345440977,1734259845125,-500.82609456,0.00019992,3]
[345440978,1734259845136,-500.0,0.00019992,3]
[345440979,1734259845147,-500.0,0.00019992,3]
[345440980,1734259845158,-650.77,0.00019992,3]
[345440981,1734259845169,-602.73104773,0.00019992,3]
[345440982,1734259845181,-513.51,0.00019992,3]
[345440983,1734259845192,-500.0,0.00019992,3]
[345440984,1734259845204,-500.0,0.00019992,3]
[345440985,1734259845214,-500.0,0.00019992,3]
[345440986,1734259845225,-500.0,0.00019992,3]
[345440987,1734259845236,-500.0,0.00019992,3]
[345440988,1734259845247,-505.29115522,0.00019992,3]
[345440989,1734259845257,-500.0,0.00019992,3]
[345440990,1734259845268,-500.0,0.00019992,3]
[345440991,1734259845279,-264.92706808,0.00019992,3]
[345440992,1734259845290,-500.0,0.00019992,3]
[345440993,1734259845300,-524.15,0.00019992,3]
[345440994,1734259845312,-500.0,0.00019992,3]
[345440995,1734259845323,-3202.06,0.00019992,3]
[345440996,1734259845334,-791.68,0.00019992,3]
[345440997,1734259845345,-500.0,0.00019992,3]
[345440998,1734259845356,-500.0,0.00019992,3]
[345440999,1734259845368,-500.0,0.00019992,3]
[345441000,1734259845379,-500.0,0.00019992,3]
[345441001,1734259845390,-2065.27923471,0.00019993,2]
[345441002,1734259845400,-150.0,0.00019993,2]
[345441003,1734259845411,-150.0,0.00019993,2]
[345441004,1734259845423,-500.0,0.00019993,3]
[345441005,1734259845435,-500.0,0.00019993,3]
[345441006,1734259845448,-500.0,0.00019993,3]
[345441007,1734259845459,-500.0,0.00019993,3]
[345441008,1734259845471,-500.0,0.00019993,3]
[345441009,1734259845483,-500.0,0.00019993,3]
[345441010,1734259845494,-500.0,0.00019993,3]
[345441011,1734259845505,-500.0,0.00019993,3]
[345441012,1734259845516,-956.31,0.00019993,3]
[345441013,1734259845526,-500.0,0.00019993,3]
[345441014,1734259845537,-500.0,0.00019993,3]
[345441015,1734259845548,-500.0,0.00019993,3]
[345441016,1734259845559,-500.0,0.00019993,3]
[345441017,1734259845570,-500.0,0.00019993,3]
[345441018,1734259845580,-500.0,0.00019993,3]
[345441019,1734259845591,-500.0,0.00019993,3]
[345441020,1734259845603,-500.0,0.00019993,3]
[345441021,1734259845615,-431.51,0.00019993,3]
[345441022,1734259845629,-500.0,0.00019993,2]
[345441023,1734259845640,-500.0,0.00019993,3]
[345441024,1734259845651,-500.0,0.00019993,3]
[345441025,1734259845662,-500.0,0.00019993,3]
[345441026,1734259845672,-500.0,0.00019993,3]
[345441027,1734259845683,-500.0,0.00019993,3]
[345441028,1734259845693,-873.82,0.00019993,3]
[345441029,1734259845704,-500.0,0.00019993,3]
[345441030,1734259845715,-500.0,0.00019993,3]
[345441031,1734259845726,-500.0,0.00019993,3]
[345441032,1734259845737,-500.0,0.00019993,3]
[345441033,1734259845748,-872.68,0.00019993,3]
[345441034,1734259845759,-500.0,0.00019993,3]
[345441035,1734259845769,-500.0,0.00019993,3]
[345441036,1734259845779,-500.0,0.00019993,3]
[345441037,1734259845790,-500.0,0.00019993,3]
[345441038,1734259845802,-500.0,0.00019993,3]
[345441039,1734259845813,-500.0,0.00019993,3]
[345441040,1734259845823,-583.26,0.00019993,3]
[345441041,1734259845832,-619.48,0.00019993,3]
[345441042,1734259845842,-500.0,0.00019993,3]
[345441043,1734259845851,-500.0,0.00019993,3]
[345441044,1734259845861,-500.0,0.00019993,3]
[345441045,1734259845878,-267.762203,0.00019993,3]
[345441046,1734259845887,-500.0,0.00019993,3]
[345441047,1734259845897,-660.66,0.00019993,3]
[345441048,1734259845906,-4125.78,0.00019993,30]
[345441049,1734259845915,-768.03,0.00019993,3]
[345441050,1734259845924,-500.0,0.00019993,3]
[345441051,1734259845934,-500.0,0.00019993,3]
[345441052,1734259845943,-500.0,0.00019993,3]
[345441053,1734259845953,-2505.47,0.00019993,3]
[345441054,1734259845962,-500.0,0.00019993,3]
[345441055,1734259845972,-607.05,0.00019993,3]
[345441056,1734259845982,-570.48,0.00019993,3]
[345441057,1734259845992,-7952.0,0.00019993,3]
[345441058,1734259846002,-500.0,0.00019993,3]
[345441059,1734259846012,-1027.03,0.00019993,3]
[345441060,1734259846022,-500.0,0.00019993,3]
[345441061,1734259846032,-671.06,0.00019993,3]
[345441062,1734259846041,-500.0,0.00019993,3]
[345441063,1734259846295,-500.0,0.00019993,3]
[345441064,1734259846314,-862.32,0.00019993,3]
[345441065,1734259846329,-500.0,0.00019993,3]
[345441066,1734259846338,-927.11,0.00019993,3]
[345441067,1734259846348,-700.65,0.00019993,3]
[345441068,1734259846358,-1141.42,0.00019993,3]
[345441070,1734259846368,-500.0,0.00019993,3]
[345441072,1734259846378,-500.0,0.00019993,3]
[345441074,1734259846387,-1290.9,0.00019993,3]
[345441075,1734259846396,-500.0,0.00019993,3]
[345441076,1734259846406,-1743.67,0.00019993,3]
[345441077,1734259846416,-515.0,0.00019993,3]
[345441078,1734259846426,-500.0,0.00019993,3]
[345441079,1734259846440,-500.0,0.00019993,3]
[345441080,1734259846449,-500.0,0.00019993,3]
[345441081,1734259846459,-500.0,0.00019993,3]
[345441082,1734259846468,-563.05,0.00019993,3]
[345441083,1734259846478,-1021.89,0.00019993,3]
[345441084,1734259846488,-609.15,0.00019993,3]
[345441085,1734259846497,-500.0,0.00019993,3]
[345441086,1734259846509,-1149.11,0.00019993,3]
[345441087,1734259846519,-500.0,0.00019993,3]
[345441088,1734259846528,-500.0,0.00019993,3]
[345441089,1734259846538,-500.0,0.00019993,3]
[345441090,1734259846547,-1539.15,0.00019993,3]
[345441091,1734259846557,-500.0,0.00019993,3]
[345441092,1734259846567,-1320.99,0.00019993,3]
[345441093,1734259846576,-500.0,0.00019993,3]
[345441094,1734259846586,-4321.96,0.00019993,3]
[345441095,1734259846595,-500.0,0.00019993,3]
[345441096,1734259846605,-1118.6,0.00019993,3]
[345441097,1734259846617,-500.0,0.00019993,3]
[345441098,1734259846626,-650.31,0.00019993,3]
[345441099,1734259846635,-978.05,0.00019993,3]
[345441100,1734259846645,-500.0,0.00019993,3]
[345441101,1734259846654,-844.24,0.00019993,3]
[345441102,1734259846664,-508.23,0.00019993,3]
[345441103,1734259846674,-639.61,0.00019993,3]
[345441104,1734259846683,-500.0,0.00019993,3]
[345441105,1734259846693,-615.97,0.00019993,3]
[345441106,1734259846702,-500.0,0.00019993,3]
[345441107,1734259846711,-500.0,0.00019993,3]
[345441108,1734259846720,-500.0,0.00019993,3]
[345441109,1734259846729,-500.0,0.00019993,3]
[345441110,1734259846739,-653.95,0.00019993,3]
[345441111,1734259846749,-500.0,0.00019993,3]
[345441112,1734259846759,-1000.0,0.00019993,3]
[345441113,1734259846768,-500.0,0.00019993,3]
[345441114,1734259846777,-2487.77,0.00019993,3]
[345441115,1734259846786,-2023.66,0.00019993,3]
[345441116,1734259846795,-78.08442318,0.00019993,3]
[345441117,1734259846810,-507.75557682,0.00019993,3]
[345441118,1734259846819,-620.31083673,0.00019993,3]
[345441119,1734259846829,-243.00916327,0.00019993,3]
[345441120,1734259846840,-500.0,0.00019993,3]
[345441121,1734259846849,-500.0,0.00019993,3]
[345441122,1734259846858,-151.39,0.00019993,3]
[345441123,1734259846869,-163.93030566,0.00019993,3]
[345441124,1734259846880,-273.88727203,0.00019993,3]
[345441125,1734259846892,-62.18242231,0.00019993,3]
[345441126,1734259846902,-500.0,0.00019993,3]
[345441127,1734259846911,-3146.57,0.00019993,3]
[345441128,1734259846921,-541.2,0.00019993,3]
[345441129,1734259846931,-500.0,0.00019993,3]
[345441130,1734259846941,-500.0,0.00019993,3]
[345441131,1734259846951,-1091.84,0.00019993,3]
[345441132,1734259846960,-500.0,0.00019993,3]
[345441133,1734259846969,-1176.71,0.00019993,3]
[345441134,1734259846979,-1000.0,0.00019995,4]
[345441135,1734259846988,-500.0,0.00019995,3]
[345441136,1734259846997,-500.0,0.00019995,3]
[345441137,1734259847006,-500.0,0.00019995,3]
[345441138,1734259847015,-500.0,0.00019995,3]
[345441139,1734259847024,-500.0,0.00019995,3]
[345441140,1734259847033,-500.0,0.00019995,3]
[345441141,1734259847043,-500.0,0.00019995,3]
[345441142,1734259847052,-500.0,0.00019995,3]
[345441143,1734259847061,-500.0,0.00019995,3]
[345441144,1734259847071,-500.0,0.00019995,3]
[345441145,1734259847080,-552.83,0.00019995,3]
[345441146,1734259847090,-500.0,0.00019995,3]
[345441147,1734259847099,-500.0,0.00019995,3]
[345441148,1734259847108,-500.0,0.00019995,3]
[345441149,1734259847118,-500.0,0.00019995,3]
[345441150,1734259847127,-500.0,0.00019995,3]
[345441151,1734259847137,-11.32381408,0.00019995,3]
[345441152,1734259847149,-488.67618592,0.00019995,3]
[345441153,1734259847158,-500.0,0.00019995,3]
[345441154,1734259847167,-500.0,0.00019995,3]
[345441155,1734259847178,-500.0,0.00019995,3]
[345441156,1734259847187,-500.0,0.00019995,3]
[345441157,1734259847197,-340.50942573,0.00019995,3]
[345441158,1734259847439,-425.43289996,0.000155,2]
[345441159,1734259847449,-150.0,0.00019765,2]
[345441160,1734259847458,-159.49057427,0.00019995,3]
[345441161,1734259847467,-500.0,0.00019995,3]
[345441162,1734259847478,-500.0,0.00019995,3]
[345441163,1734259847489,-500.0,0.00019995,3]
[345441164,1734259847498,-500.0,0.00019995,3]
[345441165,1734259847508,-500.0,0.00019995,3]
[345441166,1734259847517,-500.0,0.00019995,3]
[345441167,1734259847527,-695.08,0.00019995,3]
[345441168,1734259847537,-500.0,0.00019995,3]
[345441169,1734259847547,-500.0,0.00019995,3]
[345441170,1734259847556,-500.0,0.00019995,2]
[345441171,1734259847566,-500.0,0.00019995,3]
[345441172,1734259847576,-500.0,0.00019995,3]
[345441173,1734259847585,-500.0,0.00019995,3]
[345441174,1734259847595,-500.0,0.00019995,3]
[345441175,1734259847605,-500.0,0.00019995,3]
[345441176,1734259847615,-500.0,0.00019995,3]
[345441177,1734259847624,-505.35,0.00019995,3]
[345441178,1734259847634,-171.4203671,0.00019995,3]
[345441179,1734259847646,-328.5796329,0.00019995,3]
[345441180,1734259847655,-500.0,0.00019995,3]
[345441181,1734259847664,-178.1821211,0.00019995,3]
[345441182,1734259847680,-321.8178789,0.00019995,3]
[345441183,1734259847689,-4.13873528,0.00019995,3]
[345441184,1734259847701,-495.86126472,0.00019995,3]
[345441185,1734259847711,-500.0,0.00019995,3]
[345441186,1734259847720,-500.0,0.00019995,3]
[345441187,1734259847729,-70.6788621,0.00019995,3]
[345441188,1734259847745,-429.3211379,0.00019995,3]
[345441189,1734259847754,-500.0,0.00019995,3]
[345441190,1734259847763,-575.57049755,0.00019995,3]
[345441191,1734259847772,-500.0,0.00019995,3]
[345441192,1734259847782,-500.0,0.00019995,3]
[345441193,1734259847791,-500.0,0.00019995,3]
[345441194,1734259847801,-500.0,0.00019995,3]
[345441195,1734259847811,-267.762203,0.00019995,3]
[345441196,1734259847820,-500.0,0.00019995,3]
[345441197,1734259847830,-500.0,0.00019995,3]
[345441198,1734259847839,-2505.47,0.00019995,3]
[345441199,1734259847848,-607.05,0.00019995,3]
[345441200,1734259847858,-7952.0,0.00019995,3]
[345441201,1734259847869,-500.0,0.00019995,3]
[345441202,1734259847878,-927.11,0.00019995,3]
[345441203,1734259847888,-700.65,0.00019995,3]
[345441204,1734259847897,-500.0,0.00019995,3]
[345441205,1734259847906,-515.0,0.00019995,3]
[345441206,1734259847916,-500.0,0.00019995,3]
[345441207,1734259847925,-500.0,0.00019995,3]
[345441208,1734259847935,-563.05,0.00019995,3]
[345441209,1734259847945,-609.15,0.00019995,3]
[345441210,1734259847954,-500.0,0.00019995,3]
[345441211,1734259847964,-500.0,0.00019995,3]
[345441212,1734259847974,-1149.11,0.00019995,3]
[345441213,1734259847983,-500.0,0.00019995,3]
[345441214,1734259847992,-500.0,0.00019995,3]
[345441215,1734259848002,-500.0,0.00019995,3]
[345441216,1734259848012,-500.0,0.00019995,3]